fUSD/lending_fUSD_20250320
["ID","MTS","AMOUNT","RATE_DAILY","PERIOD"]
[356428735,1742436652783,-665.96,0.00028198,2]
[356428736,1742436652793,-500.0,0.00028199,2]
[356428737,1742436652803,-545.5,0.00028199,2]
[356428738,1742436652813,-500.0,0.00028199,2]
[356428739,1742436652823,-500.0,0.00028199,2]
[356428740,1742436652833,-1065.87,0.00028199,2]
[356428741,1742436652843,-525.47,0.00028199,2]
[356428742,1742436652853,-500.0,0.00028199,2]
[356428743,1742436652863,-522.62,0.00028199,2]
[356428744,1742436652873,-500.0,0.00028199,2]
[356428745,1742436652883,-521.26,0.00028199,2]
[356428746,1742436652893,-500.0,0.00028199,2]
[356428747,1742436652903,-500.0,0.00028199,2]
[356428748,1742436652913,-500.0,0.00028199,2]
[356428749,1742436652923,-500.0,0.00028199,2]
[356428750,1742436652933,-500.0,0.00028199,2]
[356428751,1742436652942,-500.0,0.00028199,2]
[356428752,1742436652952,-500.0,0.00028199,2]
[356428753,1742436652962,-500.0,0.00028199,2]
[356428754,1742436652972,-500.0,0.00028199,2]
[356428755,1742436652982,-500.0,0.00028199,2]
[356428756,1742436652992,-500.0,0.00028199,2]
[356428757,1742436653002,-500.0,0.00028199,2]
[356428758,1742436653012,-500.0,0.00028199,2]
[356428759,1742436653022,-1182.06,0.00028199,2]
[356428760,1742436653032,-500.0,0.00028199,2]
[356428761,1742436653042,-500.0,0.00028199,2]
[356428762,1742436653052,-500.0,0.00028199,2]
[356428763,1742436653062,-500.0,0.00028199,2]
[356428764,1742436653072,-399.18788794,0.00028199,2]
[356428765,1742436653082,-500.0,0.00028199,2]
[356428766,1742436653092,-500.0,0.00028199,2]
[356428767,1742436653103,-500.0,0.00028199,2]
[356428768,1742436653113,-1235.06,0.00028199,2]
[356428769,1742436653123,-887.09254,0.00028199,2]
[356428770,1742436653132,-500.0,0.00028199,2]
[356428771,1742436653142,-500.0,0.00028199,2]
[356428772,1742436653152,-567.44,0.00028199,2]
[356428773,1742436653162,-500.0,0.00028199,2]
[356428774,1742436653172,-500.0,0.00028199,2]
[356428775,1742436653182,-500.0,0.00028199,2]
[356428776,1742436653192,-205.82955705,0.00028199,2]
[356428777,1742436653202,-500.0,0.00028199,2]
[356428778,1742436653211,-500.0,0.00028199,2]
[356428779,1742436653221,-500.0,0.00028199,2]
[356428780,1742436653230,-500.0,0.00028199,2]
[356428781,1742436653242,-709.87,0.00028199,2]
[356428782,1742436653253,-1082.305582,0.00028199,2]
[356428783,1742436653263,-500.0,0.00028199,2]
[356428784,1742436653273,-669.19,0.00028199,2]
[356428785,1742436653284,-500.0,0.00028199,2]
[356428786,1742436653294,-500.0,0.00028199,2]
[356428787,1742436653305,-500.0,0.00028199,2]
[356428788,1742436653316,-500.0,0.00028199,2]
[356428789,1742436653328,-500.0,0.00028199,2]
[356428790,1742436653338,-500.0,0.00028199,2]
[356428791,1742436653349,-500.0,0.00028199,2]
[356428792,1742436653358,-500.0,0.00028199,2]
[356428793,1742436653368,-500.0,0.00028199,2]
[356428794,1742436653378,-669.44,0.00028199,2]
[356428795,1742436653388,-500.0,0.00028199,2]
[356428796,1742436653398,-500.0,0.00028199,2]
[356428797,1742436653408,-500.0,0.00028199,2]
[356428798,1742436653417,-500.0,0.00028199,2]
[356428799,1742436653427,-638.73,0.00028199,2]
[356428800,1742436653437,-500.0,0.00028199,2]
[356428801,1742436653653,-500.0,0.00028199,2]
[356428802,1742436653663,-500.0,0.00028199,2]
[356428803,1742436653673,-667.71,0.00028199,2]
[356428804,1742436653682,-500.0,0.00028199,2]
[356428805,1742436653692,-500.0,0.00028199,2]
[356428806,1742436653701,-685.11,0.00028199,2]
[356428807,1742436653710,-500.0,0.00028199,2]
[356428808,1742436653719,-800.13,0.00028199,2]
[356428809,1742436653729,-500.0,0.00028199,2]
[356428810,1742436653738,-500.0,0.00028199,2]
[356428811,1742436653747,-500.0,0.00028199,2]
[356428812,1742436653757,-500.0,0.00028199,2]
[356428813,1742436653766,-500.0,0.00028199,2]
[356428814,1742436653776,-712.15,0.00028199,2]
[356428815,1742436653786,-500.0,0.00028199,2]
[356428816,1742436653795,-500.0,0.00028199,2]
[356428817,1742436653804,-500.0,0.00028199,2]
[356428818,1742436653814,-500.0,0.00028199,2]
[356428819,1742436653823,-500.0,0.00028199,2]
[356428820,1742436653833,-500.0,0.00028199,2]
[356428821,1742436653843,-612.93,0.00028199,2]
[356428822,1742436653853,-500.0,0.00028199,2]
[356428823,1742436653863,-500.0,0.00028199,2]
[356428824,1742436653872,-500.0,0.00028199,2]
[356428825,1742436653881,-590.78,0.00028199,2]
[356428826,1742436653891,-500.0,0.00028199,2]
[356428827,1742436653901,-951.39,0.00028199,2]
[356428828,1742436653911,-594.58,0.00028199,2]
[356428829,1742436653921,-500.0,0.00028199,2]
[356428830,1742436653931,-682.18,0.00028199,2]
[356428831,1742436653941,-668.62,0.00028199,2]
[356428832,1742436653951,-611.83,0.00028199,2]
[356428833,1742436653961,-500.0,0.00028199,2]
[356428834,1742436653971,-500.0,0.00028199,2]
[356428835,1742436653981,-948.52,0.00028199,2]
[356428836,1742436653991,-500.0,0.00028199,2]
[356428837,1742436654000,-500.0,0.00028199,2]
[356428838,1742436654011,-500.0,0.00028199,2]
[356428839,1742436654020,-500.0,0.00028199,2]
[356428840,1742436654029,-500.0,0.00028199,2]
[356428841,1742436654039,-518.08,0.00028199,2]
[356428842,1742436654049,-258.73298323,0.00028199,2]
[356428843,1742436654059,-500.0,0.00028199,2]
[356428844,1742436654068,-500.0,0.00028199,2]
[356428845,1742436654078,-921.28,0.00028199,2]
[356428846,1742436654087,-500.0,0.00028199,2]
[356428847,1742436654098,-500.0,0.00028199,2]
[356428848,1742436654108,-500.0,0.00028199,2]
[356428849,1742436654117,-500.0,0.00028199,2]
[356428850,1742436654127,-500.0,0.00028199,2]
[356428851,1742436654137,-500.0,0.00028199,2]
[356428852,1742436654146,-500.0,0.00028199,2]
[356428853,1742436654155,-500.0,0.00028199,2]
[356428854,1742436654165,-500.0,0.00028199,2]
[356428855,1742436654175,-500.0,0.00028199,2]
[356428856,1742436654185,-500.0,0.00028199,2]
[356428857,1742436654195,-856.12,0.00028199,2]
[356428858,1742436654205,-529.41,0.00028199,2]
[356428859,1742436654215,-604.35,0.00028199,2]
[356428860,1742436654225,-500.0,0.00028199,2]
[356428861,1742436654236,-271.366055,0.00028199,2]
[356428862,1742436654247,-500.0,0.00028199,2]
[356428863,1742436654257,-500.0,0.00028199,2]
[356428864,1742436654267,-598.7,0.00028199,2]
[356428865,1742436654279,-686.21,0.00028199,2]
[356428866,1742436654289,-500.0,0.00028199,2]
[356428867,1742436654299,-500.0,0.00028199,2]
[356428868,1742436654308,-500.0,0.00028199,2]
[356428869,1742436654318,-500.0,0.00028199,2]
[356428870,1742436654328,-500.0,0.00028199,2]
[356428871,1742436654337,-500.0,0.00028199,2]
[356428872,1742436654347,-899.62,0.00028199,2]
[356428873,1742436654357,-642.25,0.00028199,2]
[356428874,1742436654366,-500.0,0.00028199,2]
[356428875,1742436654376,-222.502463,0.00028199,2]
[356428876,1742436654385,-500.0,0.00028199,2]
[356428877,1742436654395,-1828.51,0.00028199,2]
[356428878,1742436654404,-500.0,0.00028199,2]
[356428879,1742436654414,-500.0,0.00028199,2]
[356428880,1742436654423,-500.0,0.00028199,2]
[356428881,1742436654433,-660.1,0.00028199,2]
[356428882,1742436654443,-500.0,0.00028199,2]
[356428883,1742436654452,-519.59,0.00028199,2]
[356428884,1742436654462,-836.75,0.00028199,2]
[356428885,1742436654471,-750.58,0.00028199,2]
[356428886,1742436654480,-787.76,0.00028199,2]
[356428887,1742436654489,-500.0,0.00028199,2]
[356428888,1742436654501,-500.0,0.00028199,2]
[356428889,1742436654511,-758.2,0.00028199,2]
[356428890,1742436654521,-500.0,0.00028199,2]
[356428891,1742436654532,-500.0,0.00028199,2]
[356428892,1742436654543,-500.0,0.00028199,2]
[356428893,1742436654553,-500.0,0.00028199,2]
[356428894,1742436654563,-500.0,0.00028199,2]
[356428895,1742436654573,-500.0,0.00028199,2]
[356428896,1742436654582,-580.38,0.00028199,2]
[356428897,1742436654592,-1008.66,0.00028199,2]
[356428898,1742436654602,-500.0,0.00028199,2]
[356428899,1742436654611,-500.0,0.00028199,2]
[356428900,1742436654621,-310.84023212,0.00028199,2]
[356428901,1742436654630,-951.45,0.00028199,2]
[356428902,1742436654640,-500.0,0.00028199,2]
[356428903,1742436654650,-500.0,0.00028199,2]
[356428904,1742436654660,-500.0,0.00028199,2]
[356428905,1742436654669,-687.09,0.00028199,2]
[356428906,1742436654679,-500.0,0.00028199,2]
[356428907,1742436654688,-500.0,0.00028199,2]
[356428908,1742436654697,-500.0,0.00028199,2]
[356428909,1742436654707,-662.78,0.00028199,2]
[356428910,1742436654717,-500.0,0.00028199,2]
[356428911,1742436654727,-500.0,0.00028199,2]
[356428912,1742436654737,-531.26,0.00028199,2]
[356428913,1742436654746,-500.0,0.00028199,2]
[356428914,1742436654755,-500.0,0.00028199,2]
[356428915,1742436654764,-500.0,0.00028199,2]
[356428916,1742436654774,-500.0,0.00028199,2]
[356428917,1742436654783,-500.0,0.00028199,2]
[356428918,1742436654792,-500.0,0.00028199,2]
[356428919,1742436654802,-613.64,0.00028199,2]
[356428920,1742436654811,-500.0,0.00028199,2]
[356428921,1742436654821,-500.0,0.00028199,2]
[356428922,1742436654830,-500.0,0.00028199,2]
[356428923,1742436654840,-500.0,0.00028199,2]
[356428924,1742436654849,-500.0,0.00028199,2]
[356428925,1742436654859,-500.0,0.00028199,2]
[356428926,1742436654869,-847.05,0.00028199,2]
[356428927,1742436654878,-500.0,0.00028199,2]
[356428928,1742436654888,-500.0,0.00028199,2]
[356428929,1742436654898,-500.0,0.00028199,2]
[356428930,1742436654907,-1042.03,0.00028199,2]
[356428931,1742436654916,-500.0,0.00028199,2]
[356428932,1742436654926,-500.0,0.00028199,2]
[356428933,1742436654935,-709.52,0.00028199,2]
[356428934,1742436654945,-765.77,0.00028199,2]
[356428935,1742436654954,-500.0,0.00028199,2]
[356428936,1742436654963,-591.65,0.00028199,2]
[356428937,1742436654973,-500.0,0.00028199,2]
[356428938,1742436654983,-500.0,0.000282,2]
[356428939,1742436654992,-500.0,0.000282,2]
[356428940,1742436655002,-500.0,0.000282,2]
[356428941,1742436655011,-500.0,0.000282,2]
[356428942,1742436655021,-500.0,0.000282,2]
[356428943,1742436655031,-500.0,0.000282,2]
[356428944,1742436655040,-707.73,0.000282,2]
[356428945,1742436655050,-204.43,0.000282,30]
[356428946,1742436655059,-512.01184032,0.00028214,2]
[356428947,1742436655069,-506.0,0.00028229,2]
[356428948,1742436655079,-151.636,0.00028229,2]
[356428949,1742436655087,-277.308,0.00028229,2]
[356428950,1742436655097,-233.0,0.00028229,2]
[356428951,1742436655106,-161.341,0.00028229,2]
[356428952,1742436655115,-150.088,0.00028229,2]
[356428953,1742436655125,-150.0,0.00028229,2]
[356428954,1742436655135,-273.283,0.00028229,2]
[356428955,1742436655145,-281.678,0.00028229,2]
[356428956,1742436655154,-245.67,0.00028229,2]
[356428957,1742436655164,-169.128,0.00028229,2]
[356428958,1742436655173,-180.82,0.00028229,2]
[356428959,1742436655183,-175.721,0.00028229,2]
[356428960,1742436655193,-642.0,0.00028229,2]
[356428961,1742436655203,-1280.0,0.00028229,2]
[356428962,1742436655213,-152.6,0.00028229,2]
[356428963,1742436655223,-2120.369,0.00028229,2]
[356428964,1742436655235,-572.0,0.00028229,2]
[356428965,1742436655247,-1420.0,0.00028229,2]
[356428966,1742436655256,-787.0,0.00028229,2]
[356428967,1742436655266,-1272.0,0.00028229,2]
[356428968,1742436655276,-4227.269,0.00028229,2]
[356428969,1742436655285,-1430.0,0.00028229,2]
[356428970,1742436655295,-907.0,0.00028229,2]
[356428971,1742436655304,-549.995,0.00028229,2]
[356428972,1742436655314,-153.6,0.00028229,2]
[356428973,1742436655324,-3938.0,0.00028229,2]
[356428974,1742436655334,-1017.009,0.00028229,2]
[356428975,1742436655344,-721.3,0.00028243,2]
[356428976,1742436655354,-500.0,0.00028243,2]
[356428977,1742436655364,-642.28,0.00028243,2]
[356428978,1742436655373,-548.62,0.00028243,2]
[356428979,1742436655383,-500.0,0.00028243,2]
[356428980,1742436655393,-500.0,0.00028243,2]
[356428981,1742436655403,-730.07,0.00028243,2]
[356428982,1742436655412,-500.0,0.00028243,2]
[356428983,1742436655423,-500.0,0.00028243,2]
[356428984,1742436655433,-703.57,0.00028243,2]
[356428985,1742436655442,-539.58,0.00028243,2]
[356428986,1742436655452,-500.0,0.00028243,2]
[356428987,1742436655461,-772.23,0.00028243,2]
[356428988,1742436655471,-500.0,0.00028253,2]
[356428989,1742436655481,-603.87,0.00028253,2]
[356428990,1742436655490,-628.76,0.00028253,2]
[356428991,1742436655500,-650.27,0.00028253,2]
[356428992,1742436655509,-500.0,0.00028253,2]
[356428993,1742436655519,-500.0,0.00028253,2]
[356428994,1742436655529,-500.0,0.00028253,2]
[356428995,1742436655539,-500.0,0.00028253,2]
[356428996,1742436655549,-239.82509094,0.00028253,2]
[356428997,1742436655559,-500.0,0.00028253,2]
[356428998,1742436655569,-500.0,0.00028253,2]
[356428999,1742436655580,-500.0,0.00028253,2]
[356429000,1742436655591,-500.0,0.00028253,2]
[356429001,1742436655600,-500.0,0.00028253,2]
[356429002,1742436655609,-500.0,0.00028253,2]
[356429003,1742436655619,-500.0,0.00028253,2]
[356429004,1742436655628,-503.0,0.00028253,2]
[356429005,1742436655638,-500.0,0.00028253,2]
[356429006,1742436655647,-537.93,0.00028253,2]
[356429007,1742436655656,-500.0,0.00028253,2]
[356429008,1742436655666,-500.0,0.00028253,2]
[356429009,1742436655675,-313.57203648,0.00028253,2]
[356429010,1742436655685,-500.0,0.00028253,2]
[356429011,1742436655695,-500.0,0.00028253,2]
[356429012,1742436655705,-899.46,0.00028253,2]
[356429013,1742436655715,-500.0,0.00028253,2]
[356429014,1742436655725,-500.0,0.00028253,2]
[356429015,1742436655735,-500.0,0.00028253,2]
[356429016,1742436655744,-500.0,0.00028253,2]
[356429017,1742436655753,-718.62,0.00028253,2]
[356429018,1742436655763,-500.0,0.00028253,2]
[356429019,1742436655774,-500.0,0.00028253,2]
[356429020,1742436655785,-500.0,0.00028253,30]
[356429021,1742436655795,-592.26,0.00028253,2]
[356429022,1742436655805,-500.0,0.00028253,2]
[356429023,1742436655815,-500.0,0.00028253,2]
[356429024,1742436655825,-500.0,0.00028253,2]
[356429025,1742436655834,-500.0,0.00028253,2]
[356429026,1742436655844,-446.16088974,0.00028253,2]
[356429027,1742436655854,-500.0,0.00028253,2]
[356429028,1742436655863,-500.0,0.00028253,2]
[356429029,1742436655873,-1075.0,0.00028253,2]
[356429030,1742436655883,-674.87,0.00028253,2]
[356429031,1742436655893,-500.0,0.00028253,2]
[356429032,1742436655903,-852.02,0.00028253,2]
[356429033,1742436655912,-500.0,0.00028253,2]
[356429034,1742436655923,-500.0,0.00028253,2]
[356429035,1742436655933,-528.22,0.00028253,2]
[356429036,1742436655942,-500.0,0.00028253,2]
[356429037,1742436656012,-500.0,0.00028253,2]
[356429038,1742436656022,-500.0,0.00028253,2]
[356429039,1742436656032,-500.0,0.00028253,2]
[356429040,1742436656043,-500.0,0.00028253,2]
[356429041,1742436656053,-500.0,0.00028253,2]
[356429042,1742436656062,-500.0,0.00028253,2]
[356429043,1742436656071,-500.0,0.00028253,2]
[356429044,1742436656081,-303.84104255,0.00028253,2]
[356429045,1742436656093,-500.0,0.00028253,2]
[356429046,1742436656103,-500.0,0.00028253,2]
[356429047,1742436656114,-500.0,0.00028253,2]
[356429048,1742436656123,-500.0,0.00028253,2]
[356429049,1742436656133,-500.0,0.00028253,2]
[356429050,1742436656143,-500.0,0.00028253,2]
[356429051,1742436656152,-500.0,0.00028253,2]
[356429052,1742436656162,-500.0,0.00028253,2]
[356429053,1742436656171,-517.99,0.00028253,2]
[356429054,1742436656181,-656.08,0.00028253,2]
[356429055,1742436656190,-500.0,0.00028253,2]
[356429056,1742436656199,-500.0,0.00028253,2]
[356429057,1742436656208,-500.0,0.00028253,2]
[356429058,1742436656219,-500.0,0.00028253,2]
[356429059,1742436656229,-500.0,0.00028253,2]
[356429060,1742436656239,-500.0,0.00028253,2]
[356429061,1742436656252,-500.0,0.00028253,2]
[356429062,1742436656262,-500.0,0.00028253,2]
[356429063,1742436656271,-500.0,0.00028253,2]
[356429064,1742436656282,-500.0,0.00028253,2]
[356429065,1742436656292,-544.49,0.00028253,2]
[356429066,1742436656301,-500.0,0.00028253,2]
[356429067,1742436656311,-500.0,0.00028253,2]
[356429068,1742436656322,-508.16,0.00028253,2]
[356429069,1742436656333,-500.0,0.00028253,2]
[356429070,1742436656344,-500.0,0.00028253,2]
[356429071,1742436656353,-500.0,0.00028253,2]
[356429072,1742436656363,-500.0,0.00028253,2]
[356429073,1742436656372,-500.0,0.00028253,2]
[356429074,1742436656382,-500.0,0.00028253,2]
[356429075,1742436656391,-500.0,0.00028253,2]
[356429076,1742436656400,-705.48,0.00028253,2]
[356429077,1742436656410,-500.0,0.00028253,2]
[356429078,1742436656419,-500.0,0.00028253,2]
[356429079,1742436656429,-500.0,0.00028253,2]
[356429080,1742436656438,-500.0,0.00028253,2]
[356429081,1742436656448,-500.0,0.00028253,2]
[356429082,1742436656458,-696.41,0.00028253,2]
[356429083,1742436656468,-500.0,0.00028253,2]
[356429084,1742436656477,-500.0,0.00028253,2]
[356429085,1742436656487,-500.0,0.00028253,2]
[356429086,1742436656496,-500.0,0.00028253,2]
[356429087,1742436656505,-614.74019249,0.00028253,2]
[356429088,1742436656515,-500.0,0.00028253,2]
[356429089,1742436656524,-500.0,0.00028253,2]
[356429090,1742436656533,-500.0,0.00028253,2]
[356429091,1742436656543,-500.0,0.00028253,2]
[356429092,1742436656553,-539.49,0.00028253,2]
[356429093,1742436656563,-500.0,0.00028253,2]
[356429094,1742436656572,-500.0,0.00028253,2]
[356429095,1742436656582,-500.0,0.00028253,2]
[356429096,1742436656591,-500.0,0.00028253,2]
[356429097,1742436656602,-500.0,0.00028253,2]
[356429098,1742436656611,-500.0,0.00028253,2]
[356429099,1742436656621,-500.0,0.00028253,2]
[356429100,1742436656631,-500.0,0.00028253,2]
[356429101,1742436656640,-529.55,0.00028253,2]
[356429102,1742436656649,-500.0,0.00028253,2]
[356429103,1742436656659,-737.99,0.00028253,2]
[356429104,1742436656669,-500.0,0.00028253,2]
[356429105,1742436656678,-500.0,0.00028253,2]
[356429106,1742436656688,-500.0,0.00028253,2]
[356429107,1742436656698,-500.0,0.00028253,2]
[356429108,1742436656708,-668.7,0.00028253,2]
[356429109,1742436656718,-569.69258907,0.00028253,2]
[356429110,1742436656727,-500.0,0.00028253,2]
[356429111,1742436656737,-574.08,0.00028253,2]
[356429112,1742436656747,-521.31,0.00028253,2]
[356429113,1742436656757,-500.0,0.00028253,2]
[356429114,1742436656766,-753.72,0.00028253,2]
[356429115,1742436656775,-595.74,0.00028253,2]
[356429116,1742436656785,-500.0,0.00028253,2]
[356429117,1742436656795,-500.0,0.00028253,2]
[356429118,1742436656804,-500.0,0.00028253,2]
[356429119,1742436656814,-500.0,0.00028253,2]
[356429120,1742436656823,-500.0,0.00028253,2]
[356429121,1742436656836,-500.0,0.00028253,2]
[356429122,1742436656849,-500.0,0.00028253,2]
[356429123,1742436656858,-500.0,0.00028253,2]
[356429124,1742436656868,-500.0,0.00028253,2]
[356429125,1742436656878,-500.0,0.00028253,2]
[356429126,1742436656888,-612.03,0.00028253,2]
[356429127,1742436656898,-500.0,0.00028253,2]
[356429128,1742436656908,-627.85,0.00028253,2]
[356429129,1742436656918,-500.0,0.00028253,2]
[356429130,1742436656928,-500.0,0.00028253,2]
[356429131,1742436656938,-500.0,0.00028253,2]
[356429132,1742436656948,-500.0,0.00028253,2]
[356429133,1742436656958,-500.0,0.00028253,2]
[356429134,1742436656969,-505.81,0.00028253,2]
[356429135,1742436656978,-500.0,0.00028253,2]
[356429136,1742436656987,-500.0,0.00028253,2]
[356429137,1742436656996,-500.0,0.00028253,2]
[356429138,1742436657007,-665.96,0.00028253,2]
[356429139,1742436657017,-500.0,0.00028254,2]
[356429140,1742436657027,-545.5,0.00028254,2]
[356429141,1742436657037,-500.0,0.00028254,2]
[356429142,1742436657046,-500.0,0.00028254,2]
[356429143,1742436657056,-1065.87,0.00028254,2]
[356429144,1742436657066,-525.47,0.00028254,2]
[356429145,1742436657076,-500.0,0.00028254,2]
[356429146,1742436657087,-522.62,0.00028254,2]
[356429147,1742436657097,-500.0,0.00028254,2]
[356429148,1742436657106,-521.26,0.00028254,2]
[356429149,1742436657116,-500.0,0.00028254,2]
[356429150,1742436657125,-500.0,0.00028254,2]
[356429151,1742436657135,-500.0,0.00028254,2]
[356429152,1742436657145,-558.51569379,0.00028254,2]
[356429153,1742436657154,-500.0,0.00028254,2]
[356429154,1742436657164,-322.39336447,0.00028254,2]
[356429155,1742436657174,-500.0,0.00028254,2]
[356429156,1742436657183,-500.0,0.00028254,2]
[356429157,1742436657193,-500.0,0.00028254,2]
[356429158,1742436657203,-500.0,0.00028254,2]
[356429159,1742436657212,-500.0,0.00028254,2]
[356429160,1742436657222,-500.0,0.00028254,2]
[356429161,1742436657233,-500.0,0.00028254,2]
[356429162,1742436657246,-500.0,0.00028254,2]
[356429163,1742436657255,-1182.06,0.00028254,2]
[356429164,1742436657265,-500.0,0.00028254,2]
[356429165,1742436657274,-500.0,0.00028254,2]
[356429166,1742436657286,-500.0,0.00028254,2]
[356429167,1742436657296,-500.0,0.00028254,2]
[356429168,1742436657305,-500.0,0.00028254,2]
[356429169,1742436657317,-500.0,0.00028254,2]
[356429170,1742436657325,-500.0,0.00028254,2]
[356429171,1742436657335,-1235.06,0.00028254,2]
[356429172,1742436657344,-887.09254,0.00028254,2]
[356429173,1742436657354,-500.0,0.00028254,2]
[356429174,1742436657363,-500.0,0.00028254,2]
[356429175,1742436657372,-567.44,0.00028254,2]
[356429176,1742436657382,-500.0,0.00028254,2]
[356429177,1742436657391,-500.0,0.00028254,2]
[356429178,1742436657402,-500.0,0.00028254,2]
[356429179,1742436657411,-500.0,0.00028254,2]
[356429180,1742436657421,-500.0,0.00028254,2]
[356429181,1742436657430,-500.0,0.00028254,2]
[356429182,1742436657440,-500.0,0.00028254,2]
[356429183,1742436657450,-709.87,0.00028254,2]
[356429184,1742436657460,-1082.305582,0.00028254,2]
[356429185,1742436657470,-669.19,0.00028254,2]
[356429186,1742436657480,-500.0,0.00028254,2]
[356429187,1742436657489,-500.0,0.00028254,2]
[356429188,1742436657499,-500.0,0.00028254,2]
[356429189,1742436657509,-500.0,0.00028254,2]
[356429190,1742436657518,-500.0,0.00028254,2]
[356429191,1742436657527,-500.0,0.00028254,2]
[356429192,1742436657537,-500.0,0.00028254,2]
[356429193,1742436657546,-500.0,0.00028254,2]
[356429194,1742436657555,-500.0,0.00028254,2]
[356429195,1742436657564,-500.0,0.00028254,2]
[356429196,1742436657574,-669.44,0.00028254,2]
[356429197,1742436657583,-594.63966853,0.00028254,2]
[356429198,1742436657592,-500.0,0.00028254,2]
[356429199,1742436657602,-500.0,0.00028254,2]
[356429200,1742436657611,-500.0,0.00028254,2]
[356429201,1742436657620,-638.73,0.00028254,2]
[356429202,1742436657629,-500.0,0.00028254,2]
[356429203,1742436657640,-500.0,0.00028254,2]
[356429204,1742436657649,-500.0,0.00028254,2]
[356429205,1742436657658,-667.71,0.00028254,2]
[356429206,1742436657668,-500.0,0.00028254,2]
[356429207,1742436657678,-500.0,0.00028254,2]
[356429208,1742436657687,-685.11,0.00028254,2]
[356429209,1742436657696,-500.0,0.00028254,2]
[356429210,1742436657706,-800.13,0.00028254,2]
[356429211,1742436657715,-500.0,0.00028254,2]
[356429212,1742436657725,-500.0,0.00028254,2]
[356429213,1742436657735,-500.0,0.00028254,2]
[356429214,1742436657745,-500.0,0.00028254,2]
[356429215,1742436657754,-500.0,0.00028254,2]
[356429216,1742436657764,-712.15,0.00028254,2]
[356429217,1742436657774,-500.0,0.00028254,2]
[356429218,1742436657783,-381.4183422,0.00028254,2]
[356429219,1742436657793,-500.0,0.00028254,2]
[356429220,1742436657803,-500.0,0.00028254,2]
[356429221,1742436657812,-500.0,0.00028254,2]
[356429222,1742436657822,-500.0,0.00028254,2]
[356429223,1742436657831,-612.93,0.00028254,2]
[356429224,1742436657841,-500.0,0.00028254,2]
[356429225,1742436657851,-500.0,0.00028254,2]
[356429226,1742436657860,-500.0,0.00028254,2]
[356429227,1742436657870,-590.78,0.00028254,2]
[356429228,1742436657879,-500.0,0.00028254,2]
[356429229,1742436657888,-951.39,0.00028254,2]
[356429230,1742436657898,-594.58,0.00028254,2]
[356429231,1742436657907,-500.0,0.00028254,2]
[356429232,1742436657916,-682.18,0.00028254,2]
[356429233,1742436657925,-668.62,0.00028254,2]
[356429234,1742436657935,-611.83,0.00028254,2]